bitfinex/quotes_BTCUSD_20240719
["timestamp","ask_amount","ask_price","bid_price","bid_amount"]
[1721420808788,0.149198,67025.0,67021.0,0.07545]
[1721420808965,0.298395,67026.0,67021.0,0.07545]
[1721420808966,0.149197,67026.0,67021.0,0.07545]
[1721420809170,0.149197,67026.0,67023.0,0.013]
[1721420809371,0.003,67025.0,67023.0,0.013]
[1721420810026,0.149197,67026.0,67023.0,0.013]
[1721420810230,0.153197,67026.0,67023.0,0.013]
[1721420810589,0.153197,67026.0,67021.0,0.07545]
[1721420810985,0.001,67024.0,67023.0,0.1463]
[1721420811667,0.001,67024.0,67023.0,0.1563]
[1721420811899,0.003,67025.0,67023.0,0.1463]
[1721420812159,0.001,67024.0,67023.0,0.1583]
[1721420812864,0.003,67024.0,67023.0,0.1583]
[1721420813635,0.003,67024.0,67023.0,1.55028874]
[1721420813831,0.003,67024.0,67023.0,1.35709874]
[1721420814049,0.003,67024.0,67023.0,1.51144831]
[1721420814644,0.002,67024.0,67023.0,1.49944831]
[1721420814782,0.003,67024.0,67023.0,1.51344831]
[1721420815177,0.001,67024.0,67023.0,1.51344831]
[1721420815582,0.001,67024.0,67023.0,1.51544831]
[1721420815783,0.00084,67029.0,67028.0,0.149191]
[1721420816082,0.00084,67029.0,67023.0,0.1463]
[1721420816083,0.1492,67024.0,67023.0,0.1463]
[1721420816494,0.001,67024.0,67023.0,0.1543]
[1721420816716,0.001,67024.0,67023.0,0.008]
[1721420816922,0.1502,67024.0,67023.0,0.008]
[1721420817138,0.81774458,67024.0,67023.0,0.008]
[1721420817341,0.96284211,67024.0,67023.0,0.022924]
[1721420817546,1.35188594,67024.0,67023.0,0.022924]
[1721420818124,1.35088594,67024.0,67023.0,0.014924]
[1721420818532,1.35088594,67024.0,67023.0,0.000924]
[1721420818888,1.35088594,67024.0,67023.0,0.005924]
[1721420819086,1.34959955,67024.0,67023.0,0.005924]
[1721420819291,1.35659955,67024.0,67023.0,0.006924]
[1721420820559,1.21149955,67024.0,67023.0,0.006924]
[1721420821550,1.14204383,67024.0,67023.0,0.006924]
[1721420821691,1.21169776,67024.0,67023.0,0.006924]
[1721420824700,1.21174751,67024.0,67023.0,0.006924]
[1721420825542,1.2206938,67024.0,67023.0,0.006924]
[1721420826110,2.20892176,67024.0,67013.0,0.002794]
[1721420826328,0.887922,67013.0,67012.0,0.00089447]
[1721420826560,1.04826951,67013.0,67012.0,0.00089447]
[1721420826753,1.34671851,67013.0,67012.0,0.00089447]
[1721420827800,1.64516751,67013.0,67012.0,0.00089447]
[1721420828076,1.89349308,67013.0,67012.0,0.01489447]
[1721420828422,1.93795516,67013.0,67012.0,0.01489447]
[1721420828842,1.93795516,67013.0,67012.0,0.00089447]
[1721420829245,1.93795516,67013.0,67012.0,0.01489447]
[1721420829443,1.98795516,67013.0,67012.0,0.01489447]
[1721420829847,1.98795516,67013.0,67012.0,0.01589447]
[1721420830046,1.99595516,67013.0,67012.0,0.01589447]
[1721420830248,1.95149308,67013.0,67012.0,0.01589447]
[1721420830650,1.95149308,67013.0,67012.0,0.00189447]
[1721420830852,1.95149308,67013.0,67012.0,0.00689447]
[1721420831050,1.14321483,67013.0,67012.0,0.00689447]
[1721420831280,1.2133458,67013.0,67012.0,0.00689447]
[1721420831636,1.12270197,67013.0,67012.0,0.00689447]
[1721420831859,1.21334708,67013.0,67012.0,0.00689447]
[1721420834300,1.21352912,67013.0,67012.0,0.00689447]
[1721420834704,1.2225664,67013.0,67012.0,0.00689447]
[1721420835349,0.01703728,67013.0,67012.0,0.15089447]
[1721420835549,0.008,67013.0,67012.0,0.16607632]
[1721420835747,0.008,67013.0,67012.0,0.15089447]
[1721420836433,0.149224,67014.0,67012.0,0.14989447]
[1721420836950,0.14922,67015.0,67012.0,0.14489447]
[1721420837163,1.044571,67013.0,67012.0,0.00089447]
[1721420837435,1.19895274,67013.0,67012.0,0.00889447]
[1721420837676,1.57128875,67013.0,67012.0,0.00089447]
[1721420837915,1.57128875,67013.0,67012.0,0.01289447]
[1721420838156,1.56728875,67013.0,67012.0,0.01289447]
[1721420838409,1.56728875,67013.0,67012.0,0.00089447]
[1721420838635,1.56728875,67013.0,67012.0,0.01489447]
[1721420839688,1.11445801,67013.0,67012.0,0.01489447]
[1721420840652,1.11476784,67013.0,67012.0,0.01489447]
[1721420843754,1.044571,67013.0,67012.0,0.01489447]
[1721420843929,1.11469872,67013.0,67012.0,0.01489447]
[1721420844289,0.81624972,67013.0,67012.0,0.01489447]
[1721420846123,0.21935172,67013.0,67012.0,0.01489447]
[1721420846330,0.21935172,67013.0,67012.0,0.08694632]
[1721420846331,0.149224,67013.0,67012.0,0.08694632]
[1721420846540,0.149223,67014.0,67012.0,0.08694632]
[1721420846741,0.149224,67013.0,67012.0,0.08694632]
[1721420847300,0.00889463,67016.0,67012.0,0.08694632]
[1721420847662,0.07046419,67015.0,67013.0,0.01975103]
[1721420847831,0.15827438,67017.0,67013.0,0.01975103]
[1721420848057,0.07046412,67016.0,67013.0,0.002794]
[1721420849792,0.07346412,67016.0,67013.0,0.002794]
[1721420850012,0.003,67016.0,67013.0,0.002794]
[1721420850420,0.003,67016.0,67014.0,0.0788]
[1721420850621,0.003,67016.0,67015.0,0.067794]
[1721420850819,0.003,67016.0,67015.0,1.04428174]
[1721420851040,0.003,67016.0,67015.0,1.66428174]
[1721420851257,0.00084,67023.0,67022.0,0.447613]
[1721420851517,0.00084,67023.0,67022.0,1.04170374]
[1721420852521,0.00184,67023.0,67022.0,2.08511274]
[1721420852896,0.00084,67023.0,67022.0,1.35411274]
[1721420853077,0.00084,67023.0,67022.0,1.50846231]
[1721420853286,0.00184,67023.0,67022.0,1.50946231]
[1721420853884,0.00184,67023.0,67022.0,2.38946231]
[1721420854112,0.00184,67023.0,67022.0,2.43946231]
[1721420854513,0.00084,67023.0,67022.0,2.42446231]
[1721420854871,0.00184,67023.0,67022.0,2.43946231]
[1721420855340,0.00084,67023.0,67022.0,2.43846231]
[1721420855536,0.00084,67023.0,67022.0,1.55846231]
[1721420855935,0.00084,67023.0,67022.0,1.54446231]
[1721420856408,0.00184,67023.0,67022.0,1.54546231]
[1721420856563,0.00184,67023.0,67022.0,2.87687131]
[1721420856924,0.00184,67023.0,67022.0,2.03087131]
[1721420857744,0.00084,67023.0,67022.0,2.02987131]
[1721420858210,0.00084,67023.0,67022.0,2.86587131]
[1721420858349,0.00184,67023.0,67022.0,2.02987131]
[1721420858551,0.00184,67023.0,67022.0,2.04387131]
[1721420858749,0.00084,67023.0,67022.0,2.90987131]
[1721420859003,0.00084,67023.0,67022.0,2.02987131]
[1721420859198,0.00184,67023.0,67022.0,2.82387131]
[1721420859422,0.00184,67023.0,67022.0,2.04387131]
[1721420859621,0.00184,67023.0,67022.0,2.02987131]
[1721420859880,0.00084,67023.0,67022.0,2.73987131]
[1721420860122,0.00084,67023.0,67022.0,2.01587131]
[1721420860885,0.00084,67023.0,67022.0,2.72587131]
[1721420861297,0.00184,67023.0,67022.0,2.73987131]
[1721420861503,0.00184,67023.0,67022.0,3.03828031]
[1721420861747,0.00084,67023.0,67022.0,3.02428031]
[1721420862100,0.00184,67023.0,67022.0,3.03828031]
[1721420862505,0.00084,67023.0,67022.0,3.03828031]
[1721420862742,0.00084,67033.0,67028.0,2.387001]
[1721420862949,0.00084,67033.0,67028.0,3.63248274]
[1721420864328,0.00084,67033.0,67028.0,3.64648274]
[1721420865459,0.00084,67033.0,67028.0,4.11606474]
[1721420865705,0.00084,67033.0,67028.0,4.10206474]
[1721420865885,0.00084,67033.0,67028.0,4.25641431]
[1721420866511,0.00084,67033.0,67028.0,4.24241431]
[1721420866711,0.00084,67033.0,67028.0,4.25641431]
[1721420867084,0.00084,67033.0,67032.0,1.741002]
[1721420867438,0.00084,67033.0,67032.0,3.05778193]
[1721420867778,0.01566747,67050.0,67049.0,0.342944]
[1721420867988,0.01566747,67050.0,67049.0,1.09390374]
[1721420868190,0.01566747,67050.0,67049.0,1.84483131]
[1721420868604,0.01566747,67050.0,67049.0,1.79483131]
[1721420868814,0.01566747,67050.0,67049.0,1.84483131]
[1721420869014,0.01566747,67050.0,67049.0,2.57483131]
[1721420869226,0.01566747,67050.0,67049.0,2.52483131]
[1721420869432,0.01566747,67050.0,67049.0,1.90883131]
[1721420869913,0.01566747,67050.0,67049.0,1.92283131]
[1721420870115,0.01566747,67050.0,67049.0,1.95883131]
[1721420870462,0.01566747,67050.0,67049.0,2.02283131]
[1721420870665,0.01566747,67050.0,67049.0,2.00883131]
[1721420871075,0.01566747,67050.0,67049.0,2.73883131]
[1721420871289,0.01566747,67050.0,67049.0,3.03712031]
[1721420871635,0.01566747,67050.0,67049.0,3.06012031]
[1721420871840,0.0131358,67052.0,67050.0,1.445072]
[1721420872037,0.0131358,67052.0,67050.0,2.89870331]
[1721420872242,0.0131358,67052.0,67050.0,3.19419331]
[1721420873011,0.0131358,67052.0,67050.0,3.39870331]
[1721420873215,0.0131358,67052.0,67050.0,3.39590931]
[1721420873412,0.0131358,67052.0,67050.0,3.40990931]
[1721420873614,0.0131358,67052.0,67050.0,3.39590931]
[1721420874102,0.0131358,67052.0,67050.0,3.40990931]
[1721420874970,0.0131358,67052.0,67050.0,3.42390931]
[1721420875102,0.0131358,67052.0,67050.0,3.40990931]
[1721420875310,0.0131358,67052.0,67050.0,3.39590931]
[1721420875511,0.0131358,67052.0,67050.0,3.40990931]
[1721420875718,0.0131358,67052.0,67050.0,3.42390931]
[1721420877906,0.00084,67051.0,67050.0,3.42390931]
[1721420880277,0.00084,67051.0,67050.0,2.92390931]
[1721420880467,0.00084,67051.0,67050.0,3.42390931]
[1721420880671,0.00084,67051.0,67050.0,2.57562531]
[1721420880796,0.00084,67051.0,67050.0,2.34827574]
[1721420880992,0.00084,67051.0,67050.0,2.04999174]
[1721420882229,0.0131358,67052.0,67050.0,2.04999174]
[1721420882230,0.0131358,67052.0,67051.0,1.04398]
[1721420882438,0.0131358,67052.0,67051.0,2.29271131]
[1721420883068,0.0131358,67052.0,67051.0,2.34271131]
[1721420883929,0.0131358,67052.0,67051.0,2.35671131]
[1721420884130,0.0131358,67052.0,67051.0,2.37071131]
[1721420884945,0.0131358,67052.0,67051.0,1.56980174]
[1721420885154,0.0131358,67052.0,67051.0,0.028]
[1721420885361,0.6030478,67052.0,67051.0,0.028]
[1721420885775,0.3047728,67052.0,67051.0,0.028]
[1721420886319,0.3047728,67052.0,67051.0,0.014]
[1721420886320,0.1556358,67052.0,67051.0,0.014]
[1721420886604,0.1556358,67052.0,67051.0,0.028]
[1721420886825,0.0131358,67052.0,67051.0,0.46666174]
[1721420887063,0.0131358,67052.0,67051.0,0.66246791]
[1721420887210,0.0131358,67052.0,67051.0,1.52474791]
[1721420887422,0.0131358,67052.0,67051.0,0.96074791]
[1721420887837,0.0131358,67052.0,67051.0,0.97474791]
[1721420888265,0.0131358,67052.0,67051.0,0.96074791]
[1721420888708,0.0131358,67052.0,67051.0,0.95774791]
[1721420889131,0.0131358,67052.0,67051.0,0.97174791]
[1721420889383,0.0131358,67052.0,67051.0,2.07002791]
[1721420889610,0.0131358,67052.0,67051.0,2.53352791]
[1721420890476,0.0131358,67052.0,67051.0,2.50852791]
[1721420890691,0.0131358,67052.0,67051.0,2.52252791]
[1721420891085,0.0131358,67052.0,67051.0,2.53452791]
[1721420891505,0.0131358,67052.0,67051.0,2.57252791]
[1721420891788,0.0131358,67052.0,67051.0,2.58652791]
[1721420892002,0.0131358,67052.0,67051.0,1.82252791]
[1721420892335,0.0131358,67052.0,67051.0,1.83652791]
[1721420893366,0.0131358,67052.0,67051.0,1.95139088]
[1721420893896,0.0131358,67052.0,67051.0,1.95145266]
[1721420894882,0.0131358,67052.0,67051.0,2.24973266]
[1721420897268,0.0131358,67052.0,67051.0,2.25888858]
[1721420898950,0.0131358,67052.0,67051.0,2.19976032]
[1721420899143,0.0131358,67052.0,67051.0,1.68338032]
[1721420899961,0.0131358,67052.0,67051.0,1.53798032]
[1721420900253,0.0131358,67052.0,67051.0,1.53799091]
[1721420901825,0.0131358,67052.0,67051.0,1.58799091]
[1721420902441,0.0131358,67052.0,67051.0,1.53799091]
[1721420903521,0.0131358,67052.0,67051.0,1.53788673]
[1721420903894,0.0131358,67052.0,67051.0,1.58788673]
[1721420904105,0.0131358,67052.0,67051.0,1.53788673]
[1721420904546,0.0131358,67052.0,67051.0,1.58788673]
[1721420906374,0.0131358,67052.0,67051.0,1.58788673]
[1721420906804,0.0131358,67052.0,67051.0,1.58793698]
[1721420907023,0.0131358,67052.0,67051.0,1.53793698]
[1721420908665,0.0131358,67052.0,67051.0,1.58793698]
[1721420909921,0.0131358,67052.0,67051.0,1.47302791]
[1721420910129,0.0131358,67052.0,67051.0,1.58791364]
[1721420911319,0.0131358,67052.0,67051.0,1.66981364]
[1721420911596,0.0131358,67052.0,67051.0,1.73621364]
[1721420911742,0.0131358,67052.0,67051.0,1.95431364]
[1721420912145,0.0131358,67052.0,67051.0,1.90431364]
[1721420912310,0.0131358,67052.0,67051.0,1.68621364]
[1721420912516,0.0131358,67052.0,67051.0,1.53791364]
[1721420913313,0.0131358,67052.0,67051.0,1.58302559]
[1721420913523,0.0131358,67052.0,67051.0,1.42302791]
[1721420913744,0.0131358,67052.0,67051.0,1.58302658]
[1721420914670,0.0131358,67052.0,67051.0,1.58395058]
[1721420914848,0.0139758,67052.0,67051.0,1.58395058]
[1721420916064,0.0139758,67052.0,67051.0,2.37395058]
[1721420916261,0.0139758,67052.0,67051.0,2.00918829]
[1721420916472,0.0139758,67052.0,67051.0,1.869906]
[1721420916719,0.0139758,67052.0,67051.0,2.0192817]
[1721420918324,0.67886954,67052.0,67051.0,0.39765379]
[1721420918529,0.67886954,67052.0,67033.0,0.002794]
[1721420918530,0.0724,67039.0,67033.0,0.002794]
[1721420918752,0.07717479,67036.0,67030.0,0.46304871]
[1721420918953,0.07717479,67036.0,67031.0,0.002794]
[1721420918954,0.510646,67032.0,67031.0,0.002794]
[1721420919155,0.447559,67030.0,67029.0,0.25]
[1721420919417,0.447559,67030.0,67011.0,0.04561524]
[1721420919418,0.298398,67025.0,67011.0,0.003718]
[1721420919651,0.149202,67023.0,67013.0,0.2164322]
[1721420919889,0.149202,67023.0,67013.0,0.15438174]
[1721420920390,0.0631,67039.0,67022.0,0.20717574]
[1721420920531,0.149181,67033.0,67022.0,0.15717574]
[1721420920729,0.149184,67031.0,67030.0,0.007]
[1721420920972,0.298353,67035.0,67030.0,0.007]
[1721420920973,0.149181,67033.0,67030.0,0.007]
[1721420921230,0.149181,67033.0,67022.0,0.15438174]
[1721420921430,0.298338,67038.0,67022.0,0.15438174]
[1721420921431,0.298368,67032.0,67022.0,0.15438174]
[1721420921701,0.149182,67032.0,67022.0,0.15438174]
[1721420921904,0.149184,67031.0,67022.0,0.15438174]
[1721420922666,0.152184,67031.0,67022.0,0.15438174]
[1721420922870,0.149187,67030.0,67022.0,0.15438174]
[1721420923503,0.298376,67030.0,67022.0,0.15438174]
[1721420923678,0.298378,67029.0,67022.0,0.15438174]
[1721420923879,0.149205,67022.0,67015.0,0.002794]
[1721420924110,0.298403,67024.0,67012.0,0.00181847]
[1721420924111,0.149207,67021.0,67016.0,0.15438174]
[1721420925686,0.149205,67022.0,67016.0,0.15438174]
[1721420926314,0.150205,67022.0,67016.0,0.15438174]
[1721420926568,0.001,67021.0,67016.0,0.15638174]
[1721420926772,0.002,67021.0,67016.0,0.17038174]
[1721420927024,0.001,67021.0,67016.0,0.15438174]
[1721420927439,0.149215,67017.0,67016.0,0.17038174]
[1721420927840,0.149209,67020.0,67016.0,0.17038174]
[1721420928669,0.149209,67020.0,67016.0,0.16838174]
[1721420928850,0.149209,67020.0,67016.0,0.17738174]
[1721420929258,0.149209,67020.0,67016.0,0.19138174]
[1721420929456,0.149209,67020.0,67016.0,0.15438174]
[1721420929653,0.149209,67020.0,67016.0,0.16238174]
[1721420929917,0.151209,67020.0,67016.0,0.17638174]
[1721420930803,0.002,67020.0,67016.0,0.17638174]
[1721420936516,0.518246,67017.0,67016.0,0.022]
[1721420937492,0.816677,67017.0,67016.0,0.022]
[1721420937703,0.816677,67017.0,67016.0,0.008]
[1721420938090,1.116108,67017.0,67016.0,0.014]
[1721420938456,1.117108,67017.0,67016.0,0.025]
[1721420938861,1.116108,67017.0,67016.0,0.014]
[1721420939209,1.116108,67017.0,67016.0,0.018]
[1721420939381,0.817677,67017.0,67016.0,0.018]
[1721420939791,1.116108,67017.0,67016.0,0.018]
[1721420941063,1.115108,67017.0,67016.0,0.004]
[1721420941481,1.116108,67017.0,67016.0,0.017]
[1721420943685,0.747077,67017.0,67016.0,0.017]
[1721420945134,0.8192272,67017.0,67016.0,0.017]
[1721420946346,0.81978112,67017.0,67016.0,0.017]
[1721420948065,0.81978112,67017.0,67016.0,0.017924]
[1721420948626,1.21339019,67017.0,67016.0,0.017924]
[1721420948994,0.91495919,67017.0,67016.0,0.017924]
[1721420949599,0.149231,67011.0,67006.0,0.47376047]
[1721420949800,0.22472912,67010.0,67006.0,0.62814221]
[1721420950006,0.07270412,67009.0,67006.0,0.62814221]
[1721420950215,0.07270412,67008.0,67006.0,0.62814221]
[1721420950418,0.07270412,67007.0,67006.0,0.15438174]
[1721420950967,0.07270412,67007.0,67006.0,0.16538174]
[1721420951168,0.07270412,67007.0,67006.0,0.17938174]
[1721420951469,0.07270412,67007.0,67006.0,0.15438174]
[1721420951596,0.07470412,67007.0,67006.0,0.18238174]
[1721420952558,0.07470412,67007.0,67006.0,0.35624501]
[1721420952734,0.07470412,67007.0,67006.0,0.32308174]
[1721420962458,0.07470412,67007.0,67006.0,1.58080174]
[1721420962665,0.002,67007.0,67006.0,2.49586174]
[1721420962872,0.002,67007.0,67006.0,2.65021131]
[1721420963089,0.002,67007.0,67006.0,3.15021131]
[1721420963488,0.002,67007.0,67006.0,2.97211131]
[1721420963689,0.002,67007.0,67006.0,2.83211131]
[1721420963911,0.002,67007.0,67006.0,2.87670723]
[1721420964108,0.002,67007.0,67006.0,2.87670632]
[1721420964310,0.002,67007.0,67006.0,2.54211495]
[1721420965580,0.002,67007.0,67006.0,2.45292311]
[1721420966076,0.00182038,67007.0,67006.0,2.45292311]
[1721420966593,0.00182038,67007.0,67006.0,2.50292311]
[1721420966793,0.00182038,67007.0,67006.0,2.50292288]
[1721420967037,0.00182038,67007.0,67006.0,2.45292288]
[1721420967299,0.00182038,67007.0,67006.0,2.50292288]
[1721420969501,0.00182038,67007.0,67006.0,3.37292288]
[1721420969638,0.00182038,67007.0,67006.0,2.50292288]
[1721420970036,0.00182038,67007.0,67006.0,2.59022282]
[1721420971604,0.00182038,67007.0,67006.0,2.12211412]
[1721420972429,0.00182038,67007.0,67006.0,2.05506174]
[1721420972786,0.00182038,67007.0,67006.0,2.10506174]
[1721420973354,0.00182038,67007.0,67006.0,2.05506174]
[1721420973484,0.00182038,67007.0,67006.0,2.14976902]
[1721420974129,0.00182038,67007.0,67006.0,2.30411859]
[1721420974368,0.00182038,67007.0,67006.0,2.25941131]
[1721420978675,0.00182038,67007.0,67006.0,2.30412777]
[1721420978832,0.00182038,67007.0,67006.0,2.3493915]
[1721420979036,0.00182038,67007.0,67006.0,2.30412788]
[1721420979609,0.00182038,67007.0,67006.0,2.25941131]
[1721420979751,0.00182038,67007.0,67006.0,2.30412917]
[1721420980676,0.00182038,67007.0,67006.0,2.25941131]
[1721420980876,0.00182038,67007.0,67006.0,2.26033531]
[1721420982521,0.00182038,67007.0,67006.0,2.97033531]
[1721420982678,0.00182038,67007.0,67006.0,2.81598574]
[1721420983890,0.00182038,67007.0,67006.0,2.90526994]
[1721420984407,0.00182038,67007.0,67006.0,3.25374994]
[1721420984747,0.00182038,67007.0,67006.0,3.57522994]
[1721420984951,0.00182038,67007.0,67006.0,3.72957951]
[1721420986108,0.00182038,67007.0,67006.0,3.64029531]
[1721420986308,0.00182038,67007.0,67006.0,3.55299531]
[1721420986534,0.00182038,67007.0,67006.0,3.64029531]
[1721420989100,0.00182038,67007.0,67006.0,3.97105614]
[1721420991554,0.00182038,67007.0,67006.0,4.06089499]
[1721420992724,0.00182038,67007.0,67006.0,3.73017775]
[1721420993966,0.00182038,67007.0,67006.0,4.17261919]
[1721420994524,0.00182038,67007.0,67006.0,4.0609349]
[1721420996037,0.00182038,67007.0,67006.0,4.06107953]
[1721420998963,0.00182038,67007.0,67006.0,3.97377953]
[1721420999176,0.00182038,67007.0,67006.0,3.64029531]
[1721420999372,0.00182038,67007.0,67006.0,4.06122597]
[1721421000686,0.00182038,67007.0,67006.0,4.12315651]
[1721421001669,0.00182038,67007.0,67006.0,3.64029531]
[1721421001869,0.00182038,67007.0,67006.0,4.1237649]
[1721421004136,0.001,67010.0,67007.0,0.1464]
[1721421004394,0.002794,67029.0,67028.0,0.199191]
[1721421004562,0.0664,67036.0,67035.0,0.447526]
[1721421004730,0.0664,67036.0,67035.0,0.98755874]
[1721421004935,0.0664,67036.0,67035.0,1.38966561]
[1721421005428,0.0093,67042.0,67038.0,0.298338]
[1721421005745,0.0093,67042.0,67040.0,0.149164]
[1721421005746,0.11314716,67041.0,67040.0,0.149164]
[1721421005948,0.11314716,67041.0,67040.0,0.68917374]
[1721421006150,0.11314716,67041.0,67007.0,0.011]
[1721421006151,0.0621,67036.0,67027.0,0.149192]
[1721421006349,0.0621,67034.0,67028.0,0.25438174]
[1721421006572,0.0714,67032.0,67029.0,0.08892717]
[1721421006780,0.0714,67032.0,67029.0,0.24330891]
[1721421007589,0.0714,67032.0,67029.0,0.15438174]
[1721421008412,0.0651,67030.0,67029.0,0.15438174]
[1721421009234,0.0651,67030.0,67029.0,0.16838174]
[1721421009533,0.0651,67030.0,67029.0,0.15438174]
[1721421009891,0.0661,67030.0,67029.0,0.18038174]
[1721421011925,0.0661,67030.0,67029.0,0.28174781]
[1721421012121,0.0661,67030.0,67029.0,0.18038174]
[1721421012656,0.54063736,67030.0,67029.0,0.026]
[1721421012797,0.63490665,67030.0,67029.0,0.026]
[1721421012998,1.23165265,67030.0,67029.0,0.026]
[1721421013370,1.21397429,67030.0,67029.0,0.014]
[1721421013548,1.21397429,67030.0,67012.0,0.236525]
[1721421013549,0.149206,67022.0,67013.0,0.149224]
[1721421013750,0.08796781,67021.0,67017.0,0.07102855]
[1721421013990,0.01356781,67020.0,67013.0,0.149224]
[1721421014814,0.002794,67019.0,67014.0,0.15438174]
[1721421014964,0.01356781,67018.0,67014.0,0.15438174]
[1721421015326,0.01356781,67017.0,67014.0,0.15438174]
[1721421015557,0.002794,67020.0,67014.0,0.15438174]
[1721421015761,0.03952082,67019.0,67014.0,0.15438174]
[1721421015931,0.03952082,67019.0,67006.0,0.47468447]
[1721421015932,0.298441,67015.0,67006.0,0.47468447]
[1721421016137,0.25174382,67014.0,67007.0,0.15438174]
[1721421016309,0.03952082,67013.0,67007.0,0.15438174]
[1721421016510,0.03952082,67012.0,67007.0,0.15438174]
[1721421016689,0.04231482,67011.0,67007.0,0.15438174]
[1721421017042,0.03952082,67010.0,67008.0,0.0873]
[1721421017300,0.212223,67014.0,67008.0,0.24168174]
[1721421017472,0.04266533,67013.0,67008.0,0.24168174]
[1721421017709,0.03987133,67012.0,67008.0,0.24168174]
[1721421017885,0.002794,67011.0,67008.0,0.24168174]
[1721421018074,0.03987133,67010.0,67008.0,0.24168174]
[1721421018281,0.212223,67014.0,67008.0,0.24168174]
[1721421018610,0.05532599,67013.0,67008.0,0.24168174]
[1721421018816,0.002794,67013.0,67008.0,0.24168174]
[1721421019131,0.05267778,67012.0,67008.0,0.24168174]
[1721421019514,0.212223,67014.0,67008.0,0.24168174]
[1721421019515,0.001,67011.0,67008.0,0.24168174]
[1721421019804,0.002,67011.0,67008.0,0.24168174]
[1721421019958,0.001,67011.0,67008.0,0.24168174]
[1721421020160,0.001,67011.0,67008.0,0.25568174]
[1721421020588,0.063,67014.0,67008.0,0.24168174]
[1721421020794,0.001,67011.0,67008.0,0.25568174]
[1721421021423,0.001,67011.0,67008.0,0.26468174]
[1721421022087,0.001,67011.0,67008.0,0.25568174]
[1721421022502,0.001,67011.0,67008.0,0.25168174]
[1721421022946,0.001,67011.0,67010.0,0.524893]
[1721421023127,0.001,67011.0,67010.0,0.97773674]
[1721421023501,0.002,67011.0,67010.0,0.97773674]
[1721421023929,0.002,67011.0,67010.0,3.02072274]
[1721421024136,0.003,67011.0,67010.0,3.03472274]
[1721421024341,0.003,67011.0,67010.0,3.18907231]
[1721421024506,0.002,67011.0,67010.0,3.18907231]
[1721421024692,0.002,67011.0,67010.0,3.23370419]
[1721421024895,0.002,67011.0,67010.0,3.32347765]
[1721421025115,0.002,67011.0,67010.0,3.23370419]
[1721421025474,0.001,67011.0,67010.0,3.27477264]
[1721421025659,0.001,67011.0,67010.0,2.93124329]
[1721421025938,0.002794,67032.0,67026.0,0.149193]
[1721421026134,0.002794,67032.0,67027.0,0.15438174]
[1721421026475,0.0655,67033.0,67027.0,0.15438174]
[1721421027513,0.0655,67033.0,67027.0,0.16838174]
[1721421028672,0.0655,67033.0,67027.0,0.16938174]
[1721421030086,0.0655,67033.0,67027.0,0.38900291]
[1721421031630,0.0655,67033.0,67027.0,0.23980991]
[1721421031841,0.0655,67033.0,67027.0,0.38900191]
[1721421032039,0.0655,67033.0,67027.0,0.31857374]
[1721421032714,0.0655,67033.0,67027.0,0.16938174]
[1721421034204,0.0655,67033.0,67027.0,0.31857474]
[1721421037113,0.0655,67033.0,67028.0,0.149191]
[1721421037491,0.0608,67046.0,67029.0,1.48020474]
[1721421037692,0.0608,67050.0,67029.0,2.59455431]
[1721421037817,0.002794,67049.0,67029.0,2.59455431]
[1721421038020,0.002794,67049.0,67029.0,2.89293231]
[1721421038455,0.002794,67049.0,67029.0,2.50725431]
[1721421038612,0.002794,67049.0,67029.0,2.54455431]
[1721421038819,0.002794,67049.0,67029.0,2.59455431]
[1721421039064,0.002794,67049.0,67029.0,2.90693231]
[1721421039269,0.002794,67049.0,67029.0,2.89293231]
[1721421039614,0.002794,67049.0,67029.0,2.90693231]
[1721421041082,0.002794,67049.0,67029.0,2.92093231]
[1721421041737,0.002794,67049.0,67029.0,2.94393231]
[1721421041903,0.00084,67051.0,67029.0,2.94393231]
[1721421042733,0.003634,67051.0,67029.0,2.94393231]
[1721421044024,0.003634,67051.0,67029.0,3.24231031]
[1721421044283,0.00084,67051.0,67029.0,3.33038392]
[1721421044660,0.00084,67051.0,67029.0,3.7278859]
[1721421044861,0.00084,67051.0,67029.0,3.66100679]
[1721421045264,0.00084,67051.0,67050.0,1.043994]
[1721421045503,0.00084,67051.0,67050.0,1.28567574]
[1721421045626,0.00084,67051.0,67050.0,1.58395974]
[1721421046031,0.00084,67051.0,67050.0,1.63395974]
[1721421046431,0.00084,67051.0,67050.0,1.63495974]
[1721421046658,0.00084,67051.0,67050.0,1.68455793]
[1721421047499,0.00084,67051.0,67050.0,2.58495793]
[1721421047706,0.00084,67051.0,67050.0,2.64835793]
[1721421047864,0.00084,67051.0,67050.0,2.59835793]
[1721421048279,0.00084,67051.0,67050.0,2.64835793]
[1721421049083,0.00084,67051.0,67050.0,2.64735793]
[1721421049287,0.00084,67051.0,67050.0,2.64835793]
[1721421049882,0.00084,67051.0,67050.0,2.64735793]
[1721421050086,0.00084,67051.0,67050.0,2.66135793]
[1721421050292,0.00084,67051.0,67050.0,3.10964193]
[1721421050490,0.00038499,67052.0,67051.0,1.44226]
[1721421050694,0.01870547,67060.0,67059.0,1.185566]
[1721421051091,0.01870547,67060.0,67059.0,3.29197974]
[1721421051304,0.01870547,67060.0,67059.0,3.76757331]
[1721421051920,0.02252847,67075.0,67064.0,1.740221]
[1721421052174,0.02252847,67075.0,67064.0,3.25890274]
[1721421052793,0.02252847,67075.0,67069.0,2.3151]
[1721421052995,0.02252847,67075.0,67074.0,0.688467]
[1721421053242,0.02252847,67075.0,67074.0,2.05518274]
[1721421053426,0.02252847,67075.0,67074.0,2.84818274]
[1721421055749,0.02252847,67075.0,67074.0,2.86218274]
[1721421055955,0.02252847,67075.0,67074.0,3.20995893]
[1721421056369,0.02252847,67075.0,67074.0,3.18195893]
[1721421056721,0.02252847,67075.0,67074.0,3.20995893]
[1721421056922,0.00837,67088.0,67078.0,2.23988]
[1721421057123,0.00837,67088.0,67087.0,0.69906]
[1721421057323,0.00837,67088.0,67087.0,2.22664774]
[1721421057524,0.00837,67088.0,67087.0,2.28100774]
[1721421057838,0.00837,67088.0,67087.0,3.07100774]
[1721421058044,0.00837,67088.0,67087.0,3.36912774]
[1721421058292,0.00837,67088.0,67087.0,2.65212774]
[1721421059534,0.00837,67088.0,67087.0,3.41012774]
[1721421059804,0.00837,67088.0,67087.0,2.66612774]
[1721421060187,0.00837,67088.0,67087.0,2.68012774]
[1721421060647,0.00837,67088.0,67087.0,3.50012774]
[1721421061037,0.00837,67088.0,67087.0,2.68012774]